fUSD/lending_fUSD_20240630
["ID","MTS","AMOUNT","RATE_DAILY","PERIOD"]
[330718917,1719735058606,-500.0,0.00014108,3]
[330718918,1719735058616,-500.0,0.00014108,3]
[330718919,1719735058626,-500.0,0.00014108,3]
[330718920,1719735058636,-500.0,0.00014108,3]
[330718921,1719735058646,-258.95265768,0.00014108,3]
[330718922,1719735058656,-629.32,0.00014108,3]
[330718923,1719735058666,-504.42649198,0.00014108,3]
[330718924,1719735058678,-208.93214057,0.00014108,3]
[330718925,1719735058688,-242.11089747,0.00014108,3]
[330718926,1719735058698,-500.0,0.00014108,3]
[330718927,1719735058709,-192.95103617,0.00014108,3]
[330718928,1719735058718,-380.92,0.00014108,3]
[330718929,1719735058728,-431.7,0.00014108,3]
[330718930,1719735058738,-500.0,0.00014108,3]
[330718931,1719735058748,-564.99,0.00014108,3]
[330718932,1719735058758,-500.0,0.00014108,3]
[330718933,1719735058767,-504.44935182,0.00014108,3]
[330718934,1719735058777,-500.0,0.00014108,3]
[330718935,1719735058786,-220.56,0.00014108,3]
[330718936,1719735058796,-500.0,0.00014108,3]
[330718937,1719735058806,-387.61,0.00014108,3]
[330718938,1719735058816,-500.0,0.00014108,3]
[330718939,1719735058826,-500.0,0.00014108,3]
[330718940,1719735058835,-282.82698072,0.00014108,3]
[330718941,1719735058845,-399.33497539,0.00014108,3]
[330718942,1719735058855,-637.71,0.00014108,3]
[330718943,1719735058871,-244.57494035,0.00014108,3]
[330718944,1719735058880,-500.0,0.00014108,3]
[330718945,1719735058890,-259.13531888,0.00014108,3]
[330718946,1719735058900,-500.0,0.00014108,3]
[330718947,1719735058912,-500.0,0.00014108,3]
[330718948,1719735058921,-500.0,0.00014108,3]
[330718949,1719735058931,-500.0,0.00014108,3]
[330718950,1719735058943,-500.0,0.00014108,3]
[330718951,1719735058953,-500.0,0.00014108,3]
[330718952,1719735058962,-382.18,0.00014108,3]
[330718953,1719735058971,-500.0,0.00014108,3]
[330718954,1719735058981,-565.09,0.00014108,3]
[330718955,1719735058990,-500.0,0.00014108,3]
[330718956,1719735059000,-495.68952704,0.00014108,3]
[330718957,1719735059010,-500.0,0.00014108,3]
[330718958,1719735059020,-520.42731129,0.00014108,3]
[330718959,1719735059030,-500.0,0.00014108,3]
[330718960,1719735059040,-273.41,0.00014108,3]
[330718961,1719735059051,-180.61,0.00014108,3]
[330718962,1719735059060,-500.0,0.00014108,3]
[330718963,1719735059071,-458.51,0.00014108,3]
[330718964,1719735059081,-500.0,0.00014108,3]
[330718965,1719735059091,-389.05,0.00014108,3]
[330718966,1719735059101,-621.37,0.00014108,3]
[330718967,1719735059112,-493.43,0.00014108,3]
[330718968,1719735059123,-500.0,0.00014108,3]
[330718969,1719735059134,-511.89,0.00014108,3]
[330718970,1719735059145,-641.49,0.00014108,3]
[330718971,1719735059154,-500.0,0.00014108,2]
[330718972,1719735059164,-572.9,0.00014108,3]
[330718973,1719735059173,-500.0,0.00014108,3]
[330718974,1719735059184,-502.17507616,0.00014108,3]
[330718975,1719735059194,-504.07374475,0.00014108,3]
[330718976,1719735059203,-500.0,0.00014108,3]
[330718977,1719735059213,-500.0,0.00014108,3]
[330718978,1719735059223,-307.81096414,0.00014108,3]
[330718979,1719735059232,-576.11,0.00014108,3]
[330718980,1719735059242,-500.0,0.00014108,3]
[330718981,1719735059252,-192.74896811,0.00014108,3]
[330718982,1719735059262,-500.0,0.00014108,3]
[330718983,1719735059272,-500.0,0.00014108,3]
[330718984,1719735059282,-500.0,0.00014108,3]
[330718985,1719735059292,-502.88490736,0.00014108,3]
[330718986,1719735059302,-500.0,0.00014108,3]
[330718987,1719735059312,-500.0,0.00014108,3]
[330718988,1719735059321,-500.0,0.00014108,3]
[330718989,1719735059331,-500.0,0.00014108,3]
[330718990,1719735059340,-500.0,0.00014108,3]
[330718991,1719735059350,-500.0,0.00014108,3]
[330718992,1719735059360,-572.1,0.00014108,3]
[330718993,1719735059370,-412.51,0.00014108,3]
[330718994,1719735059380,-490.41,0.00014108,3]
[330718995,1719735059391,-500.0,0.00014108,3]
[330718996,1719735059401,-503.94268988,0.00014108,3]
[330718997,1719735059677,-500.0,0.00014108,3]
[330718998,1719735059691,-500.0,0.00014108,3]
[330718999,1719735059701,-502.31614808,0.00014108,3]
[330719000,1719735059710,-500.0,0.00014108,3]
[330719001,1719735059719,-586.2004462,0.00014108,3]
[330719002,1719735059729,-500.0,0.00014108,3]
[330719003,1719735059738,-325.44654279,0.00014108,3]
[330719004,1719735059748,-309.48,0.00014108,3]
[330719005,1719735059759,-500.0,0.00014108,3]
[330719006,1719735059768,-500.0,0.00014108,3]
[330719007,1719735059778,-323.43,0.00014108,3]
[330719008,1719735059787,-549.48,0.00014108,3]
[330719009,1719735059799,-500.0,0.00014108,3]
[330719010,1719735059811,-340.29,0.00014108,3]
[330719011,1719735059820,-500.0,0.00014108,3]
[330719012,1719735059830,-500.0,0.00014109,3]
[330719013,1719735059840,-509.85,0.00014109,3]
[330719014,1719735059850,-500.0,0.00014109,3]
[330719015,1719735059863,-500.0,0.00014109,3]
[330719016,1719735059872,-461.32,0.00014109,3]
[330719017,1719735059882,-500.0,0.00014109,3]
[330719018,1719735059891,-500.0,0.00014109,3]
[330719019,1719735059900,-500.0,0.00014109,3]
[330719020,1719735059909,-630.53,0.00014109,3]
[330719021,1719735059918,-500.0,0.00014109,3]
[330719022,1719735059929,-500.0,0.00014109,3]
[330719023,1719735059940,-500.0,0.00014109,3]
[330719024,1719735059949,-645.8735469,0.00014109,3]
[330719025,1719735059959,-502.64711911,0.00014109,3]
[330719026,1719735059970,-500.0,0.00014109,3]
[330719027,1719735059979,-500.0,0.00014109,3]
[330719028,1719735059989,-14694.08,0.00014109,3]
[330719029,1719735059999,-500.0,0.00014109,3]
[330719030,1719735060008,-500.0,0.00014109,3]
[330719031,1719735060018,-500.0,0.00014109,3]
[330719032,1719735060027,-563.3844331,0.00014109,3]
[330719033,1719735060036,-500.0,0.00014109,3]
[330719034,1719735060047,-500.0,0.00014109,3]
[330719035,1719735060057,-500.0,0.00014109,3]
[330719036,1719735060068,-500.0,0.00014109,3]
[330719037,1719735060079,-500.0,0.00014109,3]
[330719038,1719735060090,-500.0,0.00014109,3]
[330719039,1719735060099,-500.0,0.00014109,3]
[330719040,1719735060110,-6858.26,0.00014109,3]
[330719041,1719735060121,-375.70142931,0.00014109,3]
[330719042,1719735060130,-500.0,0.00014109,3]
[330719043,1719735060140,-500.0,0.00014109,3]
[330719044,1719735060152,-500.0,0.00014109,3]
[330719045,1719735060163,-500.0,0.00014109,3]
[330719046,1719735060172,-500.0,0.00014109,3]
[330719047,1719735060181,-500.0,0.00014109,3]
[330719048,1719735060192,-500.0,0.00014109,3]
[330719049,1719735060201,-151.0,0.00014109,2]
[330719050,1719735060210,-151.0,0.00014109,2]
[330719051,1719735060220,-500.0,0.00014109,3]
[330719052,1719735060230,-500.0,0.00014109,3]
[330719053,1719735060239,-647.88,0.00014109,3]
[330719054,1719735060249,-38388.24,0.00014109,3]
[330719055,1719735060259,-646.32,0.00014109,3]
[330719056,1719735060275,-500.0,0.00014109,3]
[330719057,1719735060290,-500.0,0.00014109,3]
[330719058,1719735060300,-459.24,0.00014109,3]
[330719059,1719735060310,-19267.62,0.00014109,3]
[330719060,1719735060321,-500.0,0.00014109,3]
[330719061,1719735060331,-500.0,0.00014109,3]
[330719062,1719735060342,-500.0,0.00014109,3]
[330719063,1719735060352,-500.0,0.00014116,3]
[330719064,1719735060363,-604.33,0.00014116,3]
[330719065,1719735060373,-588.77,0.00014116,3]
[330719066,1719735060383,-500.0,0.00014116,3]
[330719067,1719735060393,-500.0,0.00014116,3]
[330719068,1719735060403,-500.0,0.00014116,3]
[330719069,1719735060413,-580.75,0.00014116,3]
[330719070,1719735060423,-500.0,0.00014116,3]
[330719071,1719735060434,-500.0,0.00014116,3]
[330719072,1719735060444,-500.0,0.00014116,3]
[330719073,1719735060455,-500.0,0.00014116,3]
[330719074,1719735060465,-500.0,0.00014116,3]
[330719075,1719735060475,-500.0,0.00014116,3]
[330719076,1719735060485,-500.0,0.00014116,3]
[330719077,1719735060495,-183.3,0.00014116,3]
[330719078,1719735060505,-599.9,0.00014116,3]
[330719079,1719735060516,-500.0,0.00014116,3]
[330719080,1719735060526,-500.0,0.00014116,3]
[330719081,1719735060535,-324.18,0.00014116,3]
[330719082,1719735060545,-612.44,0.00014116,3]
[330719083,1719735060555,-500.0,0.00014116,3]
[330719084,1719735060565,-500.0,0.00014116,3]
[330719085,1719735060577,-561.22,0.00014116,3]
[330719086,1719735060588,-474.91,0.00014116,3]
[330719087,1719735060598,-500.0,0.00014116,3]
[330719088,1719735060608,-500.0,0.00014116,3]
[330719089,1719735060618,-501.84,0.00014116,3]
[330719090,1719735060628,-581.54,0.00014116,3]
[330719091,1719735060639,-500.0,0.00014116,3]
[330719092,1719735060649,-500.0,0.00014116,3]
[330719093,1719735060660,-613.27,0.00014116,3]
[330719094,1719735060670,-503.9,0.00014116,3]
[330719095,1719735060681,-500.0,0.00014116,3]
[330719096,1719735060692,-483.79,0.00014116,3]
[330719097,1719735060702,-500.0,0.00014116,3]
[330719098,1719735060713,-284.46,0.00014116,3]
[330719099,1719735060724,-500.0,0.00014116,3]
[330719100,1719735060734,-439.04,0.00014116,3]
[330719101,1719735060745,-432.57,0.00014116,3]
[330719102,1719735060757,-500.0,0.00014116,3]
[330719103,1719735060768,-477.07,0.00014116,3]
[330719104,1719735060779,-301.04,0.00014116,3]
[330719105,1719735060789,-500.0,0.00014116,3]
[330719106,1719735060799,-500.0,0.00014116,3]
[330719107,1719735060809,-415.29,0.00014116,3]
[330719108,1719735060819,-500.0,0.00014116,3]
[330719109,1719735060828,-500.0,0.00014116,3]
[330719110,1719735060838,-231.53,0.00014116,3]
[330719111,1719735060848,-500.0,0.00014116,3]
[330719112,1719735060862,-500.0,0.00014116,3]
[330719113,1719735060872,-500.0,0.00014116,3]
[330719114,1719735060882,-597.21,0.00014116,3]
[330719115,1719735060892,-500.0,0.00014116,3]
[330719116,1719735060901,-337.32,0.00014116,3]
[330719117,1719735060912,-500.0,0.00014116,3]
[330719118,1719735060922,-500.0,0.00014116,3]
[330719119,1719735060932,-500.0,0.00014116,3]
[330719120,1719735060943,-339.86,0.00014116,3]
[330719121,1719735060953,-500.0,0.00014116,3]
[330719122,1719735060964,-500.0,0.00014116,3]
[330719123,1719735060975,-500.0,0.00014116,3]
[330719124,1719735060985,-457.92,0.00014116,3]
[330719125,1719735060996,-23056.87,0.00014116,3]
[330719126,1719735061006,-500.0,0.00014116,3]
[330719127,1719735061016,-217.26,0.00014116,3]
[330719128,1719735061027,-525.35,0.00014116,3]
[330719129,1719735061037,-161.99,0.00014116,3]
[330719130,1719735061047,-500.0,0.00014116,3]
[330719131,1719735061057,-500.0,0.00014116,3]
[330719132,1719735061067,-616.83,0.00014116,3]
[330719133,1719735061077,-227.75239012,0.00014116,3]
[330719134,1719735061086,-500.0,0.00014116,3]
[330719135,1719735061096,-500.0,0.00014116,3]
[330719136,1719735061105,-500.0,0.00014116,3]
[330719137,1719735061115,-500.0,0.00014116,3]
[330719138,1719735061129,-346.6513251,0.00014116,3]
[330719139,1719735061140,-500.0,0.00014116,3]
[330719140,1719735061151,-500.0,0.00014116,3]
[330719141,1719735061162,-468.42,0.00014116,3]
[330719142,1719735061172,-613.01,0.00014116,3]
[330719143,1719735061182,-310.44,0.00014116,3]
[330719144,1719735061193,-500.0,0.00014116,3]
[330719145,1719735061203,-177.32,0.00014116,3]
[330719146,1719735061212,-431.13351152,0.00014116,3]
[330719147,1719735061223,-500.0,0.00014116,3]
[330719148,1719735061233,-267.31,0.00014116,3]
[330719149,1719735061243,-500.0,0.00014116,3]
[330719150,1719735061253,-622.44,0.00014116,3]
[330719151,1719735061262,-327.98,0.00014116,3]
[330719152,1719735061272,-500.0,0.00014116,3]
[330719153,1719735061281,-500.0,0.00014116,3]
[330719154,1719735061291,-500.0,0.00014116,3]
[330719155,1719735061301,-246.43184349,0.00014116,3]
[330719156,1719735061311,-490.17,0.00014116,3]
[330719157,1719735061321,-500.0,0.00014116,3]
[330719158,1719735061331,-500.0,0.00014116,3]
[330719159,1719735061340,-500.0,0.00014116,3]
[330719160,1719735061351,-323.76,0.00014116,3]
[330719161,1719735061361,-39002.17,0.00014126,3]
[330719162,1719735061371,-13418.74,0.00014126,3]
[330719163,1719735061381,-5295.8,0.00014126,3]
[330719164,1719735061390,-500.0,0.00014126,3]
[330719165,1719735061400,-4801.03,0.00014126,3]
[330719166,1719735061411,-500.0,0.00014126,3]
[330719167,1719735061420,-500.0,0.00014126,3]
[330719168,1719735061430,-500.0,0.00014126,3]
[330719169,1719735061441,-263.0085686,0.00014126,3]
[330719170,1719735061450,-500.0,0.00014126,3]
[330719171,1719735061460,-500.0,0.00014126,3]
[330719172,1719735061470,-500.0,0.00014126,3]
[330719173,1719735061480,-500.0,0.00014126,3]
[330719174,1719735061490,-500.0,0.00014126,3]
[330719175,1719735061500,-500.0,0.00014126,3]
[330719176,1719735061510,-8386.89,0.00014126,3]
[330719177,1719735061520,-553.98,0.00014126,3]
[330719178,1719735061530,-471.45,0.00014126,3]
[330719179,1719735061539,-500.0,0.00014126,3]
[330719180,1719735061549,-1396.48016295,0.00014163,2]
[330719181,1719735061558,-500.0,0.00014216,3]
[330719182,1719735061568,-500.0,0.00014216,3]
[330719183,1719735061580,-500.0,0.00014216,3]
[330719184,1719735061589,-500.0,0.00014216,3]
[330719185,1719735061599,-500.0,0.00014216,3]
[330719186,1719735061608,-500.0,0.00014216,3]
[330719187,1719735061618,-30379.71,0.00014216,3]
[330719188,1719735061628,-539.41,0.00014216,3]
[330719189,1719735061639,-500.0,0.00014216,3]
[330719190,1719735061649,-499.89,0.00014216,3]
[330719191,1719735061659,-500.0,0.00014216,3]
[330719192,1719735061668,-500.0,0.00014216,3]
[330719193,1719735061678,-500.0,0.00014216,3]
[330719194,1719735061687,-583.33,0.00014216,3]
[330719195,1719735061696,-257.43,0.00014216,3]
[330719196,1719735061706,-500.0,0.00014216,3]
[330719197,1719735061716,-500.0,0.00014216,3]
[330719198,1719735061725,-500.0,0.00014216,3]
[330719199,1719735061735,-575.94,0.00014216,3]
[330719200,1719735061745,-500.0,0.00014216,3]
[330719201,1719735061754,-403.56,0.00014216,3]
[330719202,1719735061764,-5371.12,0.00014216,3]
[330719203,1719735061774,-500.0,0.00014216,3]
[330719204,1719735061783,-500.0,0.00014216,3]
[330719205,1719735061793,-500.0,0.00014216,3]
[330719206,1719735061806,-500.0,0.00014216,3]
[330719207,1719735061816,-9052.16,0.00014216,3]
[330719208,1719735061826,-500.0,0.00014216,3]
[330719209,1719735061835,-335.1,0.00014216,3]
[330719210,1719735061845,-500.0,0.00014216,3]
[330719211,1719735061860,-500.0,0.00014216,3]
[330719212,1719735061869,-500.0,0.00014216,3]
[330719213,1719735061879,-24110.17,0.00014216,3]
[330719214,1719735061888,-500.0,0.00014216,3]
[330719215,1719735061898,-500.0,0.00014216,3]
[330719216,1719735061908,-500.0,0.00014216,3]
[330719217,1719735061918,-500.0,0.00014216,3]
[330719218,1719735061927,-500.0,0.00014216,3]
[330719219,1719735061944,-500.0,0.00014216,3]
[330719220,1719735061954,-500.0,0.00014216,3]
[330719221,1719735061964,-500.0,0.00014216,3]
[330719222,1719735061974,-500.0,0.00014216,3]
[330719223,1719735061984,-500.0,0.00014216,3]
[330719224,1719735061994,-500.0,0.00014216,3]
[330719225,1719735062004,-500.0,0.00014216,3]
[330719226,1719735062015,-500.0,0.00014216,3]
[330719227,1719735062025,-540.56,0.00014216,3]
[330719228,1719735062035,-389.45,0.00014216,3]
[330719229,1719735062044,-500.0,0.00014216,3]
[330719230,1719735062054,-500.0,0.00014216,3]
[330719231,1719735062064,-500.0,0.00014216,3]
[330719232,1719735062074,-500.0,0.00014216,3]
[330719233,1719735062084,-500.0,0.00014216,3]
[330719234,1719735062095,-500.0,0.00014216,3]
[330719235,1719735062209,-500.0,0.00014216,3]
[330719236,1719735062218,-500.0,0.00014216,3]
[330719237,1719735062228,-500.0,0.00014216,3]
[330719238,1719735062237,-500.0,0.00014216,3]
[330719239,1719735062247,-19885.13,0.00014216,3]
[330719240,1719735062256,-500.0,0.00014216,3]
[330719241,1719735062266,-208.21,0.00014216,3]
[330719242,1719735062275,-500.0,0.00014216,3]
[330719243,1719735062285,-500.0,0.00014216,3]
[330719244,1719735062294,-500.0,0.00014217,3]
[330719245,1719735062303,-500.0,0.00014217,3]
[330719246,1719735062312,-268.0,0.00014217,3]
[330719247,1719735062322,-286.7482976,0.00014217,3]
[330719248,1719735062331,-236.949909,0.00014217,3]
[330719249,1719735062341,-620.53,0.00014217,3]
[330719250,1719735062350,-500.0,0.00014217,3]
[330719251,1719735062360,-500.0,0.00014217,3]
[330719252,1719735062369,-536.69,0.00014217,3]
[330719253,1719735062379,-468.73,0.00014217,3]
[330719254,1719735062388,-395.9,0.00014217,3]
[330719255,1719735062398,-353.53,0.00014217,3]
[330719256,1719735062407,-453.81,0.00014217,3]
[330719257,1719735062416,-500.0,0.00014217,3]
[330719258,1719735062425,-500.0,0.00014217,3]
[330719259,1719735062439,-500.0,0.00014217,3]
[330719260,1719735062448,-239.64987687,0.00014217,3]
[330719261,1719735062457,-533.86,0.00014217,3]
[330719262,1719735062469,-532.20770783,0.00014217,3]
[330719263,1719735062479,-171.35579722,0.00014217,3]
[330719264,1719735062488,-500.0,0.00014217,3]
[330719265,1719735062497,-292.78,0.00014217,3]
[330719266,1719735062506,-162.57,0.00014217,3]
[330719267,1719735062516,-500.0,0.00014217,3]
[330719268,1719735062524,-197.65,0.00014217,3]
[330719269,1719735062533,-500.0,0.00014217,3]
[330719270,1719735062542,-224.15,0.00014217,3]
[330719271,1719735062552,-156.44,0.00014217,3]
[330719272,1719735062561,-191.44,0.00014217,3]
[330719273,1719735062570,-489.48,0.00014217,3]
[330719274,1719735062580,-200.78,0.00014217,3]
[330719275,1719735062589,-534.4,0.00014217,2]
[330719276,1719735062598,-509.72,0.00014217,3]
[330719277,1719735062607,-394.81,0.00014217,3]
[330719278,1719735062616,-500.0,0.00014217,3]
[330719279,1719735062625,-250.59,0.00014217,3]
[330719280,1719735062634,-255.4,0.00014217,3]
[330719281,1719735062642,-485.18,0.00014217,3]
[330719282,1719735062651,-159.95,0.00014217,3]
[330719283,1719735062660,-472.18,0.00014217,3]
[330719284,1719735062669,-528.85,0.00014217,3]
[330719285,1719735062678,-312.3,0.00014217,3]
[330719286,1719735062688,-409.21935224,0.00014217,3]
[330719287,1719735062697,-469.95282272,0.00014217,3]
[330719288,1719735062705,-623.42,0.00014217,3]
[330719289,1719735062714,-413.66,0.00014217,3]
[330719290,1719735062723,-500.0,0.00014217,3]
[330719291,1719735062731,-344.45,0.00014217,3]
[330719292,1719735062740,-500.0,0.00014217,3]
[330719293,1719735062749,-387.27,0.00014217,3]
[330719294,1719735062758,-156.09,0.00014217,3]
[330719295,1719735062766,-546.04,0.00014217,3]
[330719296,1719735062775,-500.0,0.00014217,3]
[330719297,1719735062784,-151.0,0.00014217,2]
[330719298,1719735062794,-151.0,0.00014217,2]
[330719299,1719735062803,-16681.86,0.00014217,3]
[330719300,1719735062812,-500.0,0.00014218,3]
[330719301,1719735062824,-500.0,0.00014218,3]
[330719302,1719735062834,-500.0,0.00014218,3]
[330719303,1719735062843,-405.09,0.00014218,3]
[330719304,1719735062852,-500.0,0.00014218,3]
[330719305,1719735062862,-197.91,0.00014218,3]
[330719306,1719735062873,-500.0,0.00014218,3]
[330719307,1719735062881,-500.0,0.00014218,3]
[330719308,1719735062890,-500.0,0.00014218,3]
[330719309,1719735062899,-500.0,0.00014218,3]
[330719310,1719735062908,-500.0,0.00014218,3]
[330719311,1719735062918,-14694.08,0.00014218,3]
[330719312,1719735062927,-500.0,0.00014218,3]
[330719313,1719735062938,-500.0,0.00014218,3]
[330719314,1719735062947,-500.0,0.00014218,3]
[330719315,1719735062956,-500.0,0.00014218,3]
[330719316,1719735062966,-500.0,0.00014218,3]
[330719317,1719735062975,-500.0,0.00014218,3]
[330719318,1719735062985,-163.37,0.00014218,3]
[330719319,1719735062994,-500.0,0.00014218,3]
[330719320,1719735063003,-500.0,0.00014218,3]
[330719321,1719735063012,-500.0,0.00014218,3]
[330719322,1719735063022,-6858.26,0.00014218,3]
[330719323,1719735063031,-500.0,0.00014218,3]
[330719324,1719735063041,-500.0,0.00014218,3]
[330719325,1719735063050,-500.0,0.00014218,3]
[330719326,1719735063059,-500.0,0.00014218,3]
[330719327,1719735063068,-500.0,0.00014218,3]
[330719328,1719735063078,-500.0,0.00014218,3]
[330719329,1719735063087,-167.13,0.00014218,3]
[330719330,1719735063097,-500.0,0.00014218,3]
[330719331,1719735063106,-500.0,0.00014218,3]
[330719332,1719735063116,-38388.24,0.00014218,3]
[330719333,1719735063125,-500.0,0.00014218,3]
[330719334,1719735063134,-500.0,0.00014218,3]
[330719335,1719735063143,-19267.62,0.00014218,3]
[330719336,1719735063152,-500.0,0.00014218,3]
[330719337,1719735063162,-500.0,0.00014218,3]
[330719338,1719735063171,-312.56,0.00014218,3]
[330719339,1719735063179,-581.0,0.00014226,3]
[330719340,1719735063189,-500.0,0.00014226,3]
[330719341,1719735063198,-500.0,0.00014226,3]
[330719342,1719735063207,-500.0,0.00014226,3]
[330719343,1719735063216,-500.0,0.00014226,3]
[330719344,1719735063225,-442.68,0.00014226,3]
[330719345,1719735063234,-191.72,0.00014226,3]
[330719346,1719735063243,-500.0,0.00014226,3]
[330719347,1719735063252,-500.0,0.00014226,3]
[330719348,1719735063261,-500.0,0.00014226,3]
[330719349,1719735063270,-500.0,0.00014226,3]
[330719350,1719735063279,-500.0,0.00014226,3]
[330719351,1719735063289,-500.0,0.00014226,3]
[330719352,1719735063299,-500.0,0.00014226,3]
[330719353,1719735063307,-500.0,0.00014226,3]
[330719354,1719735063316,-356.43,0.00014226,3]
[330719355,1719735063325,-159.09,0.00014226,3]
[330719356,1719735063335,-225.97,0.00014226,3]
[330719357,1719735063344,-509.41,0.00014226,3]
[330719358,1719735063353,-359.92,0.00014226,3]
[330719359,1719735063363,-454.6,0.00014226,3]
[330719360,1719735063372,-500.0,0.00014226,3]
[330719361,1719735063381,-500.0,0.00014226,3]
[330719362,1719735063390,-470.66,0.00014226,3]
[330719363,1719735063400,-436.84,0.00014226,3]
[330719364,1719735063410,-173.78,0.00014226,3]
[330719365,1719735063419,-500.0,0.00014226,3]
[330719366,1719735063428,-500.0,0.00014226,3]
[330719367,1719735063439,-500.0,0.00014226,3]
[330719368,1719735063448,-500.0,0.00014226,3]
[330719369,1719735063457,-500.0,0.00014226,3]
[330719370,1719735063466,-476.65,0.00014226,3]
[330719371,1719735063476,-429.32,0.00014226,3]
[330719372,1719735063486,-314.22,0.00014226,3]
[330719373,1719735063495,-500.0,0.00014226,3]
[330719374,1719735063505,-500.0,0.00014226,3]
[330719375,1719735063514,-516.63,0.00014226,3]
[330719376,1719735063523,-23056.87,0.00014226,3]
[330719377,1719735063532,-500.0,0.00014226,3]
[330719378,1719735063541,-500.0,0.00014226,3]
[330719379,1719735063551,-377.78,0.00014226,3]
[330719380,1719735063560,-284.47,0.00014226,3]
[330719381,1719735063570,-500.0,0.00014226,3]
[330719382,1719735063581,-500.0,0.00014226,3]
[330719383,1719735063590,-500.0,0.00014226,3]
[330719384,1719735063600,-500.0,0.00014226,3]
[330719385,1719735063609,-500.0,0.00014226,3]
[330719386,1719735063618,-308.48,0.00014226,3]
[330719387,1719735063627,-500.0,0.00014226,3]
[330719388,1719735063636,-543.96,0.00014226,3]
[330719389,1719735063646,-500.0,0.00014226,3]
[330719390,1719735063655,-330.25,0.00014226,3]
[330719391,1719735063664,-500.0,0.00014226,3]
[330719392,1719735063673,-233.24,0.00014226,3]
[330719393,1719735063683,-500.0,0.00014226,3]
[330719394,1719735063693,-593.22,0.00014226,3]
[330719395,1719735063703,-39002.17,0.00014236,3]
[330719396,1719735063712,-13418.74,0.00014236,3]
[330719397,1719735063721,-5295.8,0.00014236,3]
[330719398,1719735063731,-500.0,0.00014236,3]
[330719399,1719735063740,-4801.03,0.00014236,3]
[330719400,1719735063749,-500.0,0.00014236,3]
[330719401,1719735063759,-500.0,0.00014236,3]
[330719402,1719735063769,-500.0,0.00014236,3]
[330719403,1719735063778,-500.0,0.00014236,3]
[330719404,1719735063787,-500.0,0.00014236,3]
[330719405,1719735063796,-500.0,0.00014236,3]
[330719406,1719735063805,-305.87,0.00014236,3]
[330719407,1719735063814,-500.0,0.00014236,3]
[330719408,1719735063823,-472.63,0.00014236,3]
[330719409,1719735063831,-8386.89,0.00014236,3]
[330719410,1719735063840,-572.94,0.00014236,3]
[330719411,1719735063858,-179.57,0.00014302,2]
[330719412,1719735063873,-500.0,0.00014325,3]
[330719413,1719735063882,-4353.45,0.00014325,3]
[330719414,1719735063891,-5077.01,0.00014325,3]
[330719415,1719735063901,-500.0,0.00014325,3]
[330719416,1719735063911,-500.0,0.00014326,3]